fUSD/lending_fUSD_20250119
["ID","MTS","AMOUNT","RATE_DAILY","PERIOD"]
[349596360,1737321043823,-500.0,0.00019725,2]
[349596361,1737321043832,-458.05444162,0.00019725,2]
[349596362,1737321043845,-41.94555838,0.00019725,2]
[349596363,1737321043855,-503.90641508,0.00019725,2]
[349596364,1737321043864,-500.0,0.00019725,2]
[349596365,1737321043874,-500.0,0.00019725,2]
[349596366,1737321043883,-500.0,0.00019725,2]
[349596367,1737321043893,-500.0,0.00019725,2]
[349596368,1737321043902,-565.5149869,0.00019725,2]
[349596369,1737321043912,-500.0,0.00019725,2]
[349596370,1737321043923,-500.0,0.00019725,2]
[349596371,1737321043932,-678.47,0.00019725,2]
[349596372,1737321043942,-500.0,0.00019725,2]
[349596373,1737321043951,-570.3,0.00019725,2]
[349596374,1737321043961,-500.0,0.00019725,2]
[349596375,1737321043970,-500.0,0.00019725,2]
[349596376,1737321043979,-500.0,0.00019725,2]
[349596377,1737321043989,-500.0,0.00019725,2]
[349596378,1737321043998,-500.0,0.00019725,2]
[349596379,1737321044008,-500.0,0.00019725,2]
[349596380,1737321044017,-500.0,0.00019725,2]
[349596381,1737321044027,-500.0,0.00019725,2]
[349596382,1737321044037,-500.0,0.00019725,2]
[349596383,1737321044046,-500.0,0.00019725,2]
[349596384,1737321044055,-116.49978924,0.00019725,2]
[349596385,1737321044067,-383.50021076,0.00019725,2]
[349596386,1737321044076,-500.0,0.00019725,2]
[349596387,1737321044085,-500.0,0.00019725,2]
[349596388,1737321044095,-500.0,0.00019725,2]
[349596389,1737321044104,-500.0,0.00019725,2]
[349596390,1737321044114,-500.0,0.00019725,2]
[349596391,1737321044123,-500.0,0.00019725,2]
[349596392,1737321044132,-500.0,0.00019725,2]
[349596393,1737321044142,-500.0,0.00019725,2]
[349596394,1737321044151,-500.0,0.00019725,2]
[349596395,1737321044160,-500.0,0.00019725,2]
[349596396,1737321044170,-551.89,0.00019725,2]
[349596397,1737321044180,-334.70111295,0.00019725,2]
[349596398,1737321044192,-165.29888705,0.00019725,2]
[349596399,1737321044201,-500.0,0.00019725,2]
[349596400,1737321044211,-500.0,0.00019725,2]
[349596401,1737321044220,-500.0,0.00019725,2]
[349596402,1737321044230,-500.0,0.00019725,2]
[349596403,1737321044240,-500.0,0.00019725,2]
[349596404,1737321044249,-570.38,0.00019725,2]
[349596405,1737321044258,-500.0,0.00019725,2]
[349596407,1737321044268,-704.26,0.00019725,2]
[349596408,1737321044277,-519.64,0.00019725,2]
[349596409,1737321044287,-500.0,0.00019725,2]
[349596410,1737321044296,-500.0,0.00019725,2]
[349596411,1737321044305,-500.0,0.00019725,2]
[349596412,1737321044315,-500.0,0.00019725,2]
[349596413,1737321044325,-840.73,0.00019725,2]
[349596414,1737321044334,-500.0,0.00019725,2]
[349596415,1737321044344,-500.0,0.00019725,2]
[349596416,1737321044353,-500.0,0.00019726,2]
[349596417,1737321044362,-627.64779078,0.00019726,2]
[349596418,1737321044371,-500.0,0.00019726,2]
[349596419,1737321044380,-500.0,0.00019726,2]
[349596420,1737321044389,-500.0,0.00019726,2]
[349596421,1737321044399,-481.05394137,0.00019726,2]
[349596422,1737321044410,-18.94605863,0.00019726,2]
[349596423,1737321044419,-500.0,0.00019726,2]
[349596424,1737321044430,-500.0,0.00019726,2]
[349596425,1737321044439,-500.0,0.00019726,2]
[349596426,1737321044449,-569.31,0.00019726,2]
[349596427,1737321044458,-500.0,0.00019726,2]
[349596428,1737321044467,-264.75067526,0.00019726,2]
[349596429,1737321044476,-0.60176972,0.00019726,2]
[349596430,1737321044488,-499.39823028,0.00019726,2]
[349596431,1737321044497,-500.0,0.00019726,2]
[349596432,1737321044506,-500.0,0.00019726,2]
[349596433,1737321044516,-500.0,0.00019726,2]
[349596434,1737321044525,-500.0,0.00019726,2]
[349596435,1737321044535,-605.87,0.00019726,2]
[349596436,1737321044545,-500.0,0.00019726,2]
[349596437,1737321044557,-500.0,0.00019726,2]
[349596438,1737321044567,-500.0,0.00019726,2]
[349596439,1737321044576,-500.0,0.00019726,2]
[349596440,1737321044585,-500.0,0.00019726,2]
[349596441,1737321044595,-500.0,0.00019726,2]
[349596442,1737321044605,-500.0,0.00019726,2]
[349596443,1737321044614,-500.0,0.00019726,2]
[349596444,1737321044624,-500.0,0.00019726,2]
[349596445,1737321044634,-500.0,0.00019726,2]
[349596446,1737321044644,-53.86069472,0.00019726,2]
[349596447,1737321044656,-446.13930528,0.00019726,2]
[349596448,1737321044666,-500.0,0.00019726,2]
[349596449,1737321044677,-500.0,0.00019726,2]
[349596450,1737321044687,-500.0,0.00019726,2]
[349596451,1737321044696,-500.0,0.00019726,2]
[349596452,1737321044706,-500.0,0.00019726,2]
[349596453,1737321044715,-500.0,0.00019726,2]
[349596454,1737321044725,-500.0,0.00019726,2]
[349596455,1737321044734,-500.0,0.00019726,2]
[349596456,1737321044744,-500.0,0.00019726,2]
[349596457,1737321044753,-500.0,0.00019726,2]
[349596458,1737321044763,-745.92,0.00019726,2]
[349596459,1737321044773,-500.0,0.00019726,2]
[349596460,1737321044783,-500.0,0.00019726,2]
[349596461,1737321044792,-500.0,0.00019726,2]
[349596462,1737321044802,-500.0,0.00019726,2]
[349596463,1737321044811,-466.48,0.00019726,2]
[349596464,1737321044820,-500.0,0.00019726,2]
[349596465,1737321044829,-500.0,0.00019726,2]
[349596466,1737321044839,-500.0,0.00019726,2]
[349596467,1737321044848,-389.50241027,0.00019726,2]
[349596468,1737321044858,-50.05623774,0.00019726,2]
[349596474,1737321046352,-500.0,0.00019724,2]
[349596475,1737321046362,-828.282817,0.00019724,2]
[349596476,1737321046371,-600.0,0.00019725,2]
[349596477,1737321046381,-500.0,0.00019725,2]
[349596478,1737321046391,-449.94376226,0.00019726,2]
[349596479,1737321046400,-500.0,0.00019726,2]
[349596480,1737321046409,-500.0,0.00019726,2]
[349596481,1737321046419,-1032.82,0.00019726,2]
[349596482,1737321046431,-500.0,0.00019726,2]
[349596483,1737321046440,-514.17,0.00019726,2]
[349596484,1737321046450,-500.0,0.00019726,2]
[349596485,1737321046459,-584.68,0.00019726,2]
[349596486,1737321046468,-500.0,0.00019726,2]
[349596487,1737321046478,-500.0,0.00019873,2]
[349596488,1737321046602,-517.84821695,0.00019873,2]
[349596489,1737321046639,-2084.75216505,0.00019879,2]
[349596490,1737321046652,-1320.07597583,0.00019879,2]
[349596491,1737321046662,-3801.39813245,0.000199,2]
[349596492,1737321046675,-1234.92803435,0.000199,2]
[349596493,1737321046686,-9678.72322694,0.000199,2]
[349596494,1737321046697,-529.8830666,0.000199,2]
[349596495,1737321046712,-45420.67113966,0.000199,2]
[349596496,1737321046723,-207.43413057,0.000199,2]
[349596497,1737321046732,-159.9855118,0.00019935,2]
[349596498,1737321046741,-656.39,0.00019998,2]
[349596499,1737321046750,-500.09,0.00019998,2]
[349596500,1737321046759,-881.14,0.00019998,2]
[349596501,1737321046768,-500.0,0.00019998,2]
[349596502,1737321046778,-532.11,0.00019998,2]
[349596503,1737321046787,-818.49,0.00019998,2]
[349596504,1737321046796,-500.0,0.00019998,2]
[349596505,1737321046805,-500.0,0.00019998,2]
[349596506,1737321046815,-500.0,0.00019998,2]
[349596507,1737321046823,-500.0,0.00019998,2]
[349596508,1737321046833,-500.0,0.00019998,2]
[349596509,1737321046842,-500.0,0.00019998,2]
[349596510,1737321046851,-565.30911243,0.00019998,2]
[349596511,1737321046860,-500.0,0.00019998,2]
[349596512,1737321046869,-500.0,0.00019998,2]
[349596513,1737321046879,-524.39,0.00019998,2]
[349596514,1737321046888,-664.09,0.00019998,2]
[349596516,1737321046898,-273.35516577,0.00019998,2]
[349596518,1737321046907,-521.60842502,0.00019998,2]
[349596520,1737321046916,-500.0,0.00019998,2]
[349596522,1737321046927,-500.0,0.00019998,2]
[349596524,1737321046936,-500.0,0.00019998,2]
[349596526,1737321046945,-828.282817,0.00019998,2]
[349596529,1737321046955,-390.5,0.00019999,2]
[349596531,1737321046964,-500.0,0.00019999,2]
[349596532,1737321046973,-500.0,0.00019999,2]
[349596534,1737321046982,-500.0,0.00019999,2]
[349596537,1737321046991,-500.0,0.00019999,2]
[349596538,1737321047000,-742.64,0.00019999,2]
[349596540,1737321047010,-500.0,0.00019999,2]
[349596542,1737321047019,-500.0,0.00019999,2]
[349596544,1737321047028,-500.0,0.00019999,2]
[349596546,1737321047037,-500.0,0.00019999,2]
[349596548,1737321047046,-468.18433764,0.00019999,2]
[349596549,1737321047055,-500.0,0.00019999,2]
[349596550,1737321047065,-500.0,0.00019999,2]
[349596551,1737321047074,-500.0,0.00019999,2]
[349596552,1737321047083,-500.0,0.00019999,2]
[349596553,1737321047092,-500.0,0.00019999,2]
[349596554,1737321047101,-500.0,0.00019999,2]
[349596555,1737321047110,-500.0,0.00019999,2]
[349596556,1737321047120,-500.0,0.00019999,2]
[349596557,1737321047129,-500.0,0.00019999,2]
[349596558,1737321047138,-500.0,0.00019999,2]
[349596559,1737321047147,-554.5,0.00019999,2]
[349596560,1737321047157,-500.0,0.00019999,2]
[349596561,1737321047167,-500.0,0.00019999,2]
[349596562,1737321047177,-502.08796493,0.00019999,2]
[349596563,1737321047186,-182.6104028,0.00019999,2]
[349596564,1737321047197,-500.0,0.00019999,2]
[349596565,1737321047206,-500.0,0.00019999,2]
[349596566,1737321047215,-507.97936771,0.00019999,2]
[349596567,1737321047224,-500.0,0.00019999,2]
[349596568,1737321047233,-500.0,0.00019999,2]
[349596569,1737321047242,-500.0,0.00019999,2]
[349596570,1737321047251,-500.0,0.00019999,2]
[349596571,1737321047261,-500.0,0.00019999,2]
[349596572,1737321047270,-506.54302831,0.00019999,2]
[349596573,1737321047280,-500.0,0.00019999,2]
[349596574,1737321047289,-500.0,0.00019999,2]
[349596575,1737321047298,-500.0,0.00019999,2]
[349596576,1737321047308,-500.0,0.00019999,2]
[349596577,1737321047318,-500.0,0.00019999,2]
[349596578,1737321047328,-500.0,0.00019999,2]
[349596579,1737321047337,-500.0,0.00019999,2]
[349596580,1737321047347,-500.0,0.00019999,2]
[349596581,1737321047356,-500.0,0.00019999,2]
[349596582,1737321047365,-500.0,0.00019999,2]
[349596583,1737321047374,-500.0,0.00019999,2]
[349596584,1737321047384,-500.0,0.00019999,2]
[349596585,1737321047393,-500.0,0.00019999,2]
[349596586,1737321047402,-502.84135481,0.00019999,2]
[349596587,1737321047411,-500.0,0.00019999,2]
[349596588,1737321047420,-507.16292847,0.00019999,2]
[349596589,1737321047431,-593.51436777,0.00019999,2]
[349596590,1737321047440,-500.0,0.00019999,2]
[349596591,1737321047449,-500.0,0.00019999,2]
[349596592,1737321047458,-509.35166967,0.00019999,2]
[349596593,1737321047467,-500.0,0.00019999,2]
[349596594,1737321047477,-500.0,0.00019999,2]
[349596595,1737321047486,-500.0,0.00019999,2]
[349596596,1737321047495,-500.0,0.00019999,2]
[349596597,1737321047505,-500.0,0.00019999,2]
[349596598,1737321047514,-500.0,0.00019999,2]
[349596599,1737321047523,-500.0,0.00019999,2]
[349596600,1737321047533,-500.0,0.00019999,2]
[349596601,1737321047542,-500.0,0.00019999,2]
[349596602,1737321047551,-500.0,0.00019999,2]
[349596603,1737321047565,-500.0,0.00019999,2]
[349596604,1737321047574,-500.0,0.00019999,2]
[349596605,1737321047583,-500.0,0.00019999,2]
[349596606,1737321047594,-563.5,0.00019999,2]
[349596607,1737321047603,-500.0,0.00019999,2]
[349596608,1737321047612,-500.0,0.00019999,2]
[349596609,1737321047621,-566.99,0.00019999,2]
[349596610,1737321047631,-500.0,0.00019999,2]
[349596611,1737321047641,-500.0,0.00019999,2]
[349596612,1737321047650,-500.0,0.00019999,2]
[349596613,1737321047660,-500.0,0.00019999,2]
[349596614,1737321047670,-500.0,0.00019999,2]
[349596615,1737321047680,-805.18,0.00019999,2]
[349596616,1737321047690,-811.69,0.00019999,2]
[349596617,1737321047699,-500.0,0.00019999,2]
[349596618,1737321047709,-500.0,0.00019999,2]
[349596619,1737321047718,-500.0,0.00019999,2]
[349596620,1737321047728,-500.0,0.00019999,2]
[349596621,1737321047737,-500.0,0.00019999,2]
[349596622,1737321047747,-621.16,0.00019999,2]
[349596623,1737321047756,-500.0,0.00019999,2]
[349596624,1737321047765,-500.0,0.00019999,2]
[349596625,1737321047775,-500.0,0.00019999,2]
[349596626,1737321047786,-500.0,0.00019999,2]
[349596627,1737321047795,-500.0,0.00019999,2]
[349596628,1737321047804,-780.66,0.00019999,2]
[349596629,1737321047813,-501.80002644,0.00019999,2]
[349596630,1737321047823,-500.0,0.00019999,2]
[349596631,1737321047832,-500.0,0.00019999,2]
[349596632,1737321047842,-500.0,0.00019999,2]
[349596633,1737321047851,-500.0,0.00019999,2]
[349596634,1737321047861,-501.33762575,0.00019999,2]
[349596635,1737321047870,-500.0,0.00019999,2]
[349596636,1737321047879,-500.0,0.00019999,2]
[349596637,1737321047888,-500.0,0.00019999,2]
[349596638,1737321047897,-500.0,0.00019999,2]
[349596639,1737321047906,-500.0,0.00019999,2]
[349596640,1737321047916,-500.0,0.00019999,2]
[349596641,1737321047926,-500.0,0.00019999,2]
[349596642,1737321047935,-803.1,0.00019999,2]
[349596643,1737321047944,-922.29,0.00019999,2]
[349596644,1737321047953,-501.79615603,0.00019999,2]
[349596645,1737321047963,-500.0,0.00019999,2]
[349596646,1737321047972,-225.60049379,0.00019999,2]
[349596647,1737321047986,-274.39950621,0.00019999,2]
[349596648,1737321047995,-1694.17,0.00019999,2]
[349596649,1737321048004,-663.58,0.00019999,2]
[349596650,1737321048014,-500.0,0.00019999,2]
[349596651,1737321048023,-500.0,0.00019999,2]
[349596652,1737321048033,-500.0,0.00019999,2]
[349596653,1737321048042,-678.51,0.00019999,2]
[349596654,1737321048052,-500.0,0.00019999,2]
[349596655,1737321048061,-500.0,0.00019999,2]
[349596656,1737321048071,-500.0,0.00019999,2]
[349596657,1737321048081,-500.0,0.00019999,2]
[349596658,1737321048090,-199.16,0.00019999,2]
[349596659,1737321048100,-500.0,0.00019999,2]
[349596660,1737321048109,-500.0,0.00019999,2]
[349596661,1737321048119,-500.0,0.00019999,2]
[349596662,1737321048128,-500.0,0.00019999,2]
[349596663,1737321048137,-500.0,0.00019999,2]
[349596664,1737321048146,-500.0,0.00019999,2]
[349596665,1737321048156,-500.0,0.00019999,2]
[349596666,1737321048165,-500.0,0.00019999,2]
[349596667,1737321048175,-500.0,0.00019999,2]
[349596668,1737321048185,-341.54,0.00019999,2]
[349596669,1737321048194,-500.0,0.00019999,2]
[349596670,1737321048203,-500.0,0.00019999,2]
[349596671,1737321048213,-678.47,0.00019999,2]
[349596672,1737321048227,-500.0,0.00019999,2]
[349596673,1737321048236,-570.3,0.00019999,2]
[349596674,1737321048246,-500.0,0.00019999,2]
[349596675,1737321048255,-500.0,0.00019999,2]
[349596676,1737321048264,-500.0,0.00019999,2]
[349596677,1737321048273,-500.0,0.00019999,2]
[349596678,1737321048283,-500.0,0.00019999,2]
[349596679,1737321048292,-500.0,0.00019999,2]
[349596680,1737321048302,-442.51517531,0.00019999,2]
[349596681,1737321048312,-228.46,0.00019999,2]
[349596682,1737321048321,-202.25,0.00019999,2]
[349596683,1737321048330,-506.63146169,0.00019999,2]
[349596684,1737321048339,-500.0,0.00019999,2]
[349596685,1737321048348,-500.0,0.00019999,2]
[349596686,1737321048358,-500.0,0.00019999,2]
[349596687,1737321048368,-500.0,0.00019999,2]
[349596688,1737321048377,-500.0,0.00019999,2]
[349596689,1737321048387,-500.0,0.00019999,2]
[349596690,1737321048397,-500.0,0.00019999,2]
[349596691,1737321048406,-500.0,0.00019999,2]
[349596692,1737321048416,-551.89,0.00019999,2]
[349596693,1737321048426,-500.0,0.00019999,2]
[349596694,1737321048436,-500.0,0.00019999,2]
[349596695,1737321048445,-500.0,0.00019999,2]
[349596696,1737321048456,-218.56397221,0.00019999,2]
[349596697,1737321048465,-500.0,0.00019999,2]
[349596698,1737321048476,-570.38,0.00019999,2]
[349596699,1737321048485,-500.0,0.00019999,2]
[349596700,1737321048496,-704.26,0.00019999,2]
[349596701,1737321048506,-519.64,0.00019999,2]
[349596702,1737321048516,-500.0,0.00019999,2]
[349596703,1737321048527,-500.0,0.00019999,2]
[349596704,1737321048537,-840.73,0.00019999,2]
[349596705,1737321048546,-459.1140899,0.00019999,2]
[349596706,1737321048558,-500.0,0.00019999,2]
[349596707,1737321048569,-500.0,0.0002,2]
[349596708,1737321048579,-500.0,0.0002,2]
[349596709,1737321048589,-500.0,0.0002,2]
[349596710,1737321048599,-500.0,0.0002,2]
[349596711,1737321048609,-500.0,0.0002,2]
[349596712,1737321048619,-478.07050867,0.0002,2]
[349596713,1737321048629,-500.0,0.0002,2]
[349596714,1737321048641,-500.0,0.0002,2]
[349596715,1737321048650,-500.0,0.0002,2]
[349596716,1737321048660,-500.0,0.0002,2]
[349596717,1737321048670,-500.0,0.0002,2]
[349596718,1737321048681,-500.0,0.0002,2]
[349596719,1737321048692,-210.75,0.0002,2]
[349596720,1737321048701,-500.0,0.0002,2]
[349596721,1737321048711,-605.87,0.0002,2]
[349596722,1737321048720,-500.0,0.0002,2]
[349596723,1737321048730,-500.0,0.0002,2]
[349596724,1737321048740,-571.25,0.0002,2]
[349596725,1737321048750,-500.0,0.0002,2]
[349596726,1737321048760,-500.0,0.0002,2]
[349596727,1737321048770,-500.0,0.0002,2]
[349596728,1737321048780,-500.0,0.0002,2]
[349596729,1737321048790,-500.0,0.0002,2]
[349596730,1737321048800,-500.0,0.0002,2]
[349596731,1737321048810,-500.0,0.0002,2]
[349596732,1737321048819,-500.0,0.0002,2]
[349596733,1737321048829,-500.0,0.0002,2]
[349596734,1737321048839,-500.0,0.0002,2]
[349596735,1737321048848,-500.0,0.0002,2]
[349596736,1737321048857,-500.0,0.0002,2]
[349596737,1737321048867,-500.0,0.0002,2]
[349596738,1737321048877,-500.0,0.0002,2]
[349596739,1737321048886,-500.0,0.0002,2]
[349596740,1737321048896,-500.0,0.0002,2]
[349596741,1737321048905,-745.92,0.0002,2]
[349596742,1737321048915,-500.0,0.0002,2]
[349596743,1737321048925,-500.0,0.0002,2]
[349596744,1737321048935,-500.0,0.0002,2]
[349596745,1737321048945,-500.0,0.0002,2]
[349596746,1737321048954,-500.0,0.0002,2]
[349596747,1737321048964,-500.0,0.0002,2]
[349596748,1737321048973,-167.2677086,0.0002,2]
[349596749,1737321048983,-500.0,0.0002,2]
[349596750,1737321048992,-500.0,0.0002,2]
[349596751,1737321049001,-500.0,0.0002,2]
[349596752,1737321049044,-1032.82,0.0002,2]
[349596753,1737321049055,-500.0,0.0002,2]
[349596754,1737321049064,-500.0,0.0002,2]
[349596755,1737321049074,-584.68,0.0002,2]
[349596756,1737321049083,-500.0,0.0002,2]
[349596757,1737321049092,-2037.36,0.00020145,2]
[349596758,1737321049101,-150.0,0.00020227,2]
[349596759,1737321049110,-656.39,0.00020272,2]
[349596760,1737321049120,-500.09,0.00020272,2]
[349596761,1737321049129,-881.14,0.00020272,2]
[349596762,1737321049138,-500.0,0.00020272,2]
[349596763,1737321049147,-532.11,0.00020272,2]
[349596764,1737321049158,-818.49,0.00020272,2]
[349596765,1737321049167,-500.0,0.00020272,2]
[349596766,1737321049178,-500.0,0.00020272,2]
[349596767,1737321049190,-500.0,0.00020272,2]
[349596768,1737321049201,-403.74,0.00020272,2]
[349596769,1737321049210,-500.0,0.00020272,2]
[349596770,1737321049219,-500.0,0.00020272,2]
[349596771,1737321049229,-500.0,0.00020272,2]
[349596772,1737321049238,-500.0,0.00020272,2]
[349596773,1737321049247,-524.39,0.00020272,2]
[349596774,1737321049256,-664.09,0.00020272,2]
[349596775,1737321049265,-500.0,0.00020272,2]
[349596776,1737321049274,-320.51450927,0.00020272,2]
[349596777,1737321049283,-500.0,0.00020272,2]
[349596778,1737321049293,-828.282817,0.00020272,2]
[349596779,1737321049302,-500.0,0.00020273,2]
[349596780,1737321049311,-369.25928526,0.00020273,2]
[349596781,1737321049324,-130.74071474,0.00020273,2]
[349596782,1737321049333,-500.0,0.00020273,2]
[349596783,1737321049343,-500.0,0.00020273,2]
[349596784,1737321049352,-385.22279029,0.00020273,2]
[349596785,1737321049362,-500.0,0.00020273,2]
[349596786,1737321049371,-500.0,0.00020273,2]
[349596787,1737321049380,-500.0,0.00020273,2]
[349596788,1737321049389,-500.0,0.00020273,2]
[349596789,1737321049399,-500.0,0.00020273,2]
[349596790,1737321049408,-391.26297662,0.00020273,2]
[349596791,1737321049418,-500.0,0.00020273,2]
[349596792,1737321049428,-605.87,0.00020273,2]
[349596793,1737321049437,-500.0,0.00020273,2]
[349596794,1737321049446,-500.0,0.00020273,2]
[349596795,1737321049456,-500.0,0.00020273,2]
[349596796,1737321049465,-347.36696491,0.00020273,2]
[349596797,1737321049474,-500.0,0.00020273,2]
[349596798,1737321049484,-500.0,0.00020273,2]
[349596799,1737321049494,-500.0,0.00020273,2]
[349596800,1737321049505,-742.64,0.00020273,2]
[349596801,1737321049515,-500.0,0.00020273,2]
[349596802,1737321049526,-500.0,0.00020273,2]
[349596803,1737321049536,-500.0,0.00020273,2]
[349596804,1737321049546,-500.0,0.00020273,2]
[349596805,1737321049561,-500.0,0.00020273,2]
[349596806,1737321049572,-500.0,0.00020273,2]
[349596807,1737321049582,-500.0,0.00020273,2]
[349596808,1737321049592,-500.0,0.00020273,2]
[349596809,1737321049602,-500.0,0.00020273,2]
[349596810,1737321049612,-500.0,0.00020273,2]
[349596811,1737321049621,-500.0,0.00020273,2]
[349596812,1737321049632,-500.0,0.00020273,2]
[349596813,1737321049642,-500.0,0.00020273,2]
[349596814,1737321049651,-500.0,0.00020273,2]
[349596815,1737321049661,-500.0,0.00020273,2]
[349596816,1737321049671,-745.92,0.00020273,2]
[349596817,1737321049682,-500.0,0.00020273,2]
[349596818,1737321049691,-500.0,0.00020273,2]
[349596819,1737321049700,-500.0,0.00020273,2]
[349596820,1737321049711,-500.0,0.00020273,2]
[349596821,1737321049720,-500.0,0.00020273,2]
[349596822,1737321049730,-500.0,0.00020273,2]
[349596823,1737321049740,-500.0,0.00020273,2]
[349596824,1737321049749,-500.0,0.00020273,2]
[349596825,1737321049758,-500.0,0.00020273,2]
[349596826,1737321049768,-500.0,0.00020273,2]
[349596827,1737321049778,-447.09519847,0.00020273,2]
[349596828,1737321049788,-500.0,0.00020273,2]
[349596829,1737321049797,-500.0,0.00020273,2]
[349596830,1737321049806,-554.5,0.00020273,2]
[349596831,1737321049815,-1032.82,0.00020273,2]
[349596832,1737321049825,-164.59222584,0.00020273,2]
[349596833,1737321049835,-513.47198108,0.00020273,2]
[349596834,1737321049844,-500.0,0.00020273,2]
[349596835,1737321049853,-504.81096086,0.00020273,2]
[349596836,1737321049863,-500.0,0.00020273,2]
[349596837,1737321049873,-500.0,0.00020273,2]
[349596838,1737321049882,-501.48059,0.00020273,2]
[349596839,1737321049892,-500.0,0.00020273,2]
[349596840,1737321049901,-245.69,0.00020273,2]
[349596841,1737321049911,-500.0,0.00020273,2]
[349596842,1737321049920,-500.0,0.00020273,2]
[349596843,1737321049932,-456.70602202,0.00020273,2]
[349596844,1737321049942,-500.0,0.00020273,2]
[349596845,1737321049951,-584.68,0.00020273,2]
[349596846,1737321049961,-500.0,0.00020273,2]
[349596847,1737321049970,-500.0,0.00020273,2]
[349596848,1737321049979,-500.0,0.00020273,2]
[349596849,1737321049989,-500.0,0.00020273,2]
[349596850,1737321049998,-500.0,0.00020273,2]
[349596851,1737321050007,-500.0,0.00020273,2]
[349596852,1737321050017,-500.0,0.00020273,2]
[349596853,1737321050026,-500.0,0.00020273,2]
[349596854,1737321050035,-500.0,0.00020273,2]
[349596855,1737321050045,-500.0,0.00020273,2]
[349596856,1737321050055,-500.0,0.00020273,2]
[349596857,1737321050064,-563.5,0.00020273,2]
[349596858,1737321050074,-480.17435459,0.00020273,2]
[349596859,1737321050084,-566.99,0.00020273,2]
[349596860,1737321050094,-500.0,0.00020273,2]
[349596861,1737321050103,-166.90155827,0.00020273,2]
[349596862,1737321050112,-500.0,0.00020273,2]
[349596863,1737321050122,-500.0,0.00020273,2]
[349596864,1737321050131,-500.0,0.00020273,2]
[349596865,1737321050141,-805.18,0.00020273,2]
[349596866,1737321050150,-811.69,0.00020273,2]
[349596867,1737321050158,-500.0,0.00020273,2]
[349596868,1737321050167,-500.0,0.00020273,2]
[349596869,1737321050178,-500.0,0.00020273,2]
[349596870,1737321050187,-621.16,0.00020273,2]
[349596871,1737321050197,-500.0,0.00020273,2]
[349596872,1737321050206,-500.0,0.00020273,2]
[349596873,1737321050216,-500.0,0.00020273,2]
[349596874,1737321050225,-780.66,0.00020273,2]
[349596875,1737321050234,-500.0,0.00020273,2]
[349596876,1737321050244,-500.0,0.00020273,2]
[349596877,1737321050253,-500.0,0.00020273,2]
[349596878,1737321050262,-500.0,0.00020273,2]
[349596879,1737321050271,-500.0,0.00020273,2]
[349596880,1737321050280,-500.0,0.00020273,2]
[349596881,1737321050290,-500.0,0.00020273,2]
[349596882,1737321050299,-803.1,0.00020273,2]